[Event "EYCC Open-U14 2019"]
[Site "Bratislava"]
[Date "2019.08.06"]
[Round "5.40"]
[White "Cuttoli, Alexandre"]
[Black "Poltorak, Sebastian"]
[Result "0-1"]
[ECO "E11"]
[WhiteElo "1848"]
[BlackElo "2068"]
[Annotator "NA"]
[PlyCount "120"]
[EventDate "2019.08.02"]
[EventType "swiss"]
[EventCountry "SVK"]
[SourceTitle "playchess.com"]
[Source "ChessBase"]
[SourceQuality "1"]
[TimeControl "40/5400+30:1800+30"]

1. d4 {[%emt 0:00:00]} Nf6 {[%emt 0:00:00]} 2. Nf3 {[%emt 0:00:00]} e6 {[%emt 0:00:00]} 3. c4 {[%emt 0:00:00]} Bb4+ {[%emt 0:00:00]} 4. Nbd2 {[%emt 0:00:01]} d5 {[%emt 0:02:26]} 5. Qa4+ {[%emt 0:01:05]} Nc6 {[%emt 0:00:06]} 6. a3 {[%emt 0:00:05]} Be7 {[%emt 0:03:21]} 7. e3 {[%emt 0:00:55]} Bd7 {[%emt 0:00:55]} 8. Qc2 {[%emt 0:00:05]} O-O {[%emt 0:03:43]} 9. Bd3 {[%emt 0:00:24]} h6 {[%emt 0:06:38]} 10. b4 {[%emt 0:00:35]} dxc4 {[%emt 0:03:08]} 11. Nxc4 {[%emt 0:02:11]} a5 {[%emt 0:09:20]} 12. b5 {[%emt 0:06:35]} Nb8 {[%emt 0:01:34]} 13. Rb1 {[%emt 0:03:46]} c6 {[%emt 0:04:33]} 14. Nce5 {[%emt 0:01:10]} cxb5 {[%emt 0:02:26]} 15. Nxd7 {[%emt 0:00:20]} Nbxd7 {[%emt 0:01:09]} 16. Rxb5 {[%emt 0:00:54]} Rc8 {[%emt 0:03:14]} 17. Qb2 {[%emt 0:01:21]} Qc7 {[%emt 0:04:03]} 18. Bd2 {[%emt 0:01:31]} b6 {[%emt 0:01:02]} 19. O-O {[%emt 0:01:59]} Qd6 {[%emt 0:02:45]} 20. Ra1 {[%emt 0:04:53]} Qc6 {[%emt 0:05:48]} 21. Qb1 {[%emt 0:24:45]} Rfd8 {[%emt 0:13:01]} 22. e4 {[%emt 0:05:48]} Ne8 {[%emt 0:05:22]} 23. Rh5 {[%emt 0:11:33]} e5 {[%emt 0:07:03]} 24. Qd1 {[%emt 0:11:53]} exd4 {[%emt 0:03:44]} 25. Nxd4 {[%emt 0:01:28]} Qf6 {[%emt 0:00:54]} 26. Be3 {[%emt 0:02:01]} Bc5 {[%emt 0:01:48]} 27. Rf5 {[%emt 0:01:44]} Bxd4 {[%emt 0:02:40]} 28. Rxf6 {[%emt 0:01:37]} Ndxf6 {[%emt 0:01:22]} 29. Bxd4 {[%emt 0:01:18]} Rxd4 {[%emt 0:00:03]} 30. Qe2 {[%emt 0:00:33]} Rcd8 {[%emt 0:01:11]} 31. Rd1 {[%emt 0:03:34]} Nxe4 {[%emt 0:00:36]} 32. Qe3 {[%emt 0:00:37]} Nc3 {[%emt 0:05:18]} 33. Rd2 {[%emt 0:01:04]} Kh8 {[%emt 0:00:53]} 34. Qf3 {[%emt 0:02:42]} Nf6 {[%emt 0:00:53]} 35. h3 {[%emt 0:00:31]} b5 {[%emt 0:01:16]} 36. g4 {[%emt 0:02:11]} b4 {[%emt 0:00:50]} 37. axb4 {[%emt 0:00:55]} axb4 {[%emt 0:00:04]} 38. Qf5 {[%emt 0:03:24]} b3 {[%emt 0:01:05]} 39. Qa5 {[%emt 0:00:54]} b2 {[%emt 0:04:33]} 40. Qxc3 {[%emt 0:00:00]} Rxd3 {[%emt 0:00:00]} 41. Qxb2 {[%emt 0:00:46]} Rxd2 {[%emt 0:00:15]} 42. Qe5 {[%emt 0:00:16]} Re8 {[%emt 0:00:28]} 43. Qg3 {[%emt 0:01:40]} Re1+ {[%emt 0:00:57]} 44. Kh2 {[%emt 0:00:12]} Ree2 {[%emt 0:00:04]} 45. g5 {[%emt 0:01:36]} Rxf2+ {[%emt 0:00:06]} 46. Kg1 {[%emt 0:00:23]} Rg2+ {[%emt 0:00:03]} 47. Qxg2 {[%emt 0:00:05]} Rxg2+ {[%emt 0:00:04]} 48. Kxg2 {[%emt 0:00:05]} hxg5 {[%emt 0:00:03]} 49. h4 {[%emt 0:00:11]} gxh4 {[%emt 0:00:07]} 50. Kg1 {[%emt 0:00:04]} g5 {[%emt 0:00:08]} 51. Kg2 {[%emt 0:00:09]} g4 {[%emt 0:00:09]} 52. Kh1 {[%emt 0:00:03]} Kg7 {[%emt 0:00:09]} 53. Kg1 {[%emt 0:00:04]} Kg6 {[%emt 0:00:04]} 54. Kh1 {[%emt 0:00:04]} Kf5 {[%emt 0:00:04]} 55. Kg2 {[%emt 0:00:06]} Kf4 {[%emt 0:00:04]} 56. Kf2 {[%emt 0:00:04]} h3 {[%emt 0:00:06]} 57. Kf1 {[%emt 0:00:14]} g3 {[%emt 0:00:06]} 58. Kg1 {[%emt 0:00:10]} Kf3 {[%emt 0:00:23]} 59. Kh1 {[%emt 0:00:15]} Ng4 {[%emt 0:00:20]} 60. Kg1 {[%emt 0:00:12]} h2+ {[%emt 0:00:06]} 0-1

[Event "EYCC Open-U14 2019"]
[Site "Bratislava"]
[Date "2019.08.06"]
[Round "5.41"]
[White "Falkevall, Axel"]
[Black "Protassov, Vlad"]
[Result "1/2-1/2"]
[ECO "B11"]
[WhiteElo "2067"]
[BlackElo "1898"]
[Annotator "NA"]
[PlyCount "75"]
[EventDate "2019.08.02"]
[EventType "swiss"]
[EventCountry "SVK"]
[SourceTitle "playchess.com"]
[Source "ChessBase"]
[SourceQuality "1"]
[TimeControl "40/5400+30:1800+30"]

1. e4 {[%emt 0:00:00]} c6 {[%emt 0:00:00]} 2. Nc3 {[%emt 0:00:00]} d5 {[%emt 0:00:00]} 3. Nf3 {[%emt 0:00:00]} Bg4 {[%emt 0:00:30]} 4. h3 {[%emt 0:00:00]} Bxf3 {[%emt 0:00:06]} 5. Qxf3 {[%emt 0:00:00]} e6 {[%emt 0:00:19]} 6. Be2 {[%emt 0:00:27]} dxe4 {[%emt 0:05:07]} 7. Nxe4 {[%emt 0:00:58]} Nd7 {[%emt 0:00:08]} 8. d4 {[%emt 0:02:33]} Ngf6 {[%emt 0:00:12]} 9. Ng3 {[%emt 0:04:52]} Qb6 {[%emt 0:03:29]} 10. c3 {[%emt 0:04:18]} Be7 {[%emt 0:01:11]} 11. O-O {[%emt 0:04:52]} O-O {[%emt 0:02:24]} 12. Re1 {[%emt 0:04:04]} Rfd8 {[%emt 0:07:02]} 13. Bc4 {[%emt 0:07:21]} Nd5 {[%emt 0:21:18]} 14. Bb3 {[%emt 0:08:50]} N7f6 {[%emt 0:09:12]} 15. Bg5 {[%emt 0:11:06]} h6 {[%emt 0:03:44]} 16. Bxf6 {[%emt 0:05:12]} Nxf6 {[%emt 0:01:21]} 17. Nf5 {[%emt 0:01:57]} Re8 {[%emt 0:00:56]} 18. Nxe7+ {[%emt 0:08:33]} Rxe7 {[%emt 0:00:08]} 19. Re2 {[%emt 0:00:53]} Rae8 {[%emt 0:04:59]} 20. Rae1 {[%emt 0:00:57]} Qc7 {[%emt 0:02:22]} 21. Qd3 {[%emt 0:08:11]} c5 {[%emt 0:05:15]} 22. dxc5 {[%emt 0:04:38]} Qxc5 {[%emt 0:01:06]} 23. Re5 {[%emt 0:00:58]} Qc7 {[%emt 0:00:29]} 24. Qd4 {[%emt 0:00:51]} a6 {[%emt 0:01:20]} 25. R5e3 {[%emt 0:08:29]} Rd8 {[%emt 0:00:50]} 26. Qe5 {[%emt 0:00:17]} Qxe5 {[%emt 0:01:16]} 27. Rxe5 {[%emt 0:00:05]} Rd2 {[%emt 0:00:05]} 28. R1e2 {[%emt 0:00:48]} Red7 {[%emt 0:00:56]} 29. Kf1 {[%emt 0:00:22]} Kf8 {[%emt 0:00:52]} 30. Rxd2 {[%emt 0:00:30]} Rxd2 {[%emt 0:00:08]} 31. Re2 {[%emt 0:00:17]} Rxe2 {[%emt 0:00:07]} 32. Kxe2 {[%emt 0:00:04]} Ke7 {[%emt 0:00:30]} 33. Kd3 {[%emt 0:02:01]} Kd6 {[%emt 0:00:21]} 34. Bd1 {[%emt 0:00:47]} Nd7 {[%emt 0:02:32]} 35. b4 {[%emt 0:02:51]} Ne5+ {[%emt 0:00:29]} 36. Kd4 {[%emt 0:00:20]} Nc6+ {[%emt 0:00:09]} 37. Ke3 {[%emt 0:01:23]} b6 {[%emt 0:05:50]} 38. Ke4 {Ke5+} 1/2-1/2

[Event "EYCC Open-U14 2019"]
[Site "Bratislava"]
[Date "2019.08.06"]
[Round "5.42"]
[White "Vanduyfhuys, Igor"]
[Black "Frank, Adam"]
[Result "0-1"]
[ECO "C55"]
[WhiteElo "1804"]
[BlackElo "2125"]
[Annotator "NA"]
[PlyCount "66"]
[EventDate "2019.08.02"]
[EventType "swiss"]
[EventCountry "SVK"]
[SourceTitle "playchess.com"]
[Source "ChessBase"]
[SourceQuality "1"]
[TimeControl "40/5400+30:1800+30"]

1. e4 {[%emt 0:00:00]} e5 {[%emt 0:00:00]} 2. Nf3 {[%emt 0:00:00]} Nc6 {[%emt 0:00:00]} 3. Bc4 {[%emt 0:00:00]} Nf6 {[%emt 0:00:00]} 4. d3 {[%emt 0:00:09]} Be7 {[%emt 0:00:03]} 5. O-O {[%emt 0:00:40]} O-O {[%emt 0:00:05]} 6. Nc3 {[%emt 0:00:16]} d6 {[%emt 0:00:14]} 7. a4 {[%emt 0:00:58]} Bg4 {[%emt 0:00:37]} 8. h3 {[%emt 0:00:53]} Bh5 {[%emt 0:00:32]} 9. Bg5 {[%emt 0:05:43]} Qd7 {[%emt 0:15:18]} 10. Bxf6 {[%emt 0:06:20]} Bxf6 {[%emt 0:01:39]} 11. Nd5 {[%emt 0:00:10]} Nd4 {[%emt 0:04:13]} 12. Nxe5 {[%emt 0:07:46]} Bxe5 {[%emt 0:05:34]} 13. Qxh5 {[%emt 0:00:10]} Nxc2 {[%emt 0:01:53]} 14. Rac1 {[%emt 0:01:09]} Nd4 {[%emt 0:00:54]} 15. f4 {[%emt 0:04:49]} c6 {[%emt 0:09:30]} 16. Ne3 {[%emt 0:03:28]} g6 {[%emt 0:01:54]} 17. Qd1 {[%emt 0:01:27]} Bg7 {[%emt 0:00:30]} 18. f5 {[%emt 0:02:17]} Kh8 {[%emt 0:13:01]} 19. Kh1 {[%emt 0:04:24]} Rae8 {[%emt 0:06:58]} 20. Ng4 {[%emt 0:11:15]} h5 {[%emt 0:06:21]} 21. Qe1 {[%emt 0:20:56]} Nxf5 {[%emt 0:09:26]} 22. Qf2 {[%emt 0:06:40]} hxg4 {[%emt 0:05:56]} 23. exf5 {[%emt 0:00:18]} d5 {[%emt 0:02:08]} 24. Qh4+ {[%emt 0:03:02]} Kg8 {[%emt 0:00:01]} 25. f6 {[%emt 0:00:13]} dxc4 {[%emt 0:01:04]} 26. fxg7 {[%emt 0:01:23]} Kxg7 {[%emt 0:00:06]} 27. Rxc4 {[%emt 0:00:43]} f5 {[%emt 0:03:34]} 28. hxg4 {[%emt 0:00:15]} Rh8 {[%emt 0:00:08]} 29. gxf5 {[%emt 0:00:25]} Rxh4+ {[%emt 0:00:21]} 30. Rxh4 {[%emt 0:00:05]} gxf5 {[%emt 0:01:07]} 31. g4 {[%emt 0:00:11]} Qxd3 {[%emt 0:00:39]} 32. Rxf5 {[%emt 0:00:25]} Qd2 {[%emt 0:01:00]} 33. Rg5+ {[%emt 0:00:32]} Qxg5 {[%emt 0:00:05]} 0-1

[Event "EYCC Open-U14 2019"]
[Site "Bratislava"]
[Date "2019.08.06"]
[Round "5.43"]
[White "Grahn, Vidar"]
[Black "Schlegel, Igor"]
[Result "1/2-1/2"]
[ECO "B90"]
[WhiteElo "1980"]
[BlackElo "1968"]
[Annotator "NA"]
[PlyCount "127"]
[EventDate "2019.08.02"]
[EventType "swiss"]
[EventCountry "SVK"]
[SourceTitle "playchess.com"]
[Source "ChessBase"]
[SourceQuality "1"]
[TimeControl "40/5400+30:1800+30"]

1. e4 {[%emt 0:00:00]} c5 {[%emt 0:00:00]} 2. Nf3 {[%emt 0:00:00]} d6 {[%emt 0:00:00]} 3. d4 {[%emt 0:00:00]} cxd4 {[%emt 0:00:00]} 4. Nxd4 {[%emt 0:00:00]} Nf6 {[%emt 0:00:00]} 5. Nc3 {[%emt 0:00:01]} a6 {[%emt 0:00:01]} 6. Bc4 {[%emt 0:00:06]} e6 {[%emt 0:00:42]} 7. Bb3 {[%emt 0:02:16]} Nbd7 {[%emt 0:00:50]} 8. O-O {[%emt 0:00:42]} Nc5 {[%emt 0:00:31]} 9. Re1 {[%emt 0:00:31]} Be7 {[%emt 0:05:42]} 10. Qf3 {[%emt 0:03:23]} O-O {[%emt 0:02:35]} 11. Qg3 {[%emt 0:01:40]} Qc7 {[%emt 0:22:28]} 12. Bh6 {[%emt 0:01:43]} Ne8 {[%emt 0:00:07]} 13. Be3 {[%emt 0:00:18]} b5 {[%emt 0:02:20]} 14. f3 {[%emt 0:06:08]} Bb7 {[%emt 0:04:07]} 15. Rad1 {[%emt 0:12:06]} Bf6 {[%emt 0:04:56]} 16. Nde2 {[%emt 0:07:43]} b4 {[%emt 0:18:03]} 17. Na4 {[%emt 0:04:10]} Nxa4 {[%emt 0:00:58]} 18. Bxa4 {[%emt 0:00:20]} Bxb2 {[%emt 0:00:14]} 19. Bxe8 {[%emt 0:01:52]} Rfxe8 {[%emt 0:00:36]} 20. Qxd6 {[%emt 0:01:33]} Be5 {[%emt 0:12:43]} 21. Qxb4 {[%emt 0:07:44]} Bxh2+ {[%emt 0:01:23]} 22. Kf2 {[%emt 0:08:33]} a5 {[%emt 0:01:44]} 23. Qb6 {[%emt 0:04:35]} Qxb6 {[%emt 0:02:22]} 24. Bxb6 {[%emt 0:00:17]} Ra6 {[%emt 0:00:13]} 25. Rb1 {[%emt 0:04:30]} Bd6 {[%emt 0:04:20]} 26. Be3 {[%emt 0:06:22]} Bc6 {[%emt 0:02:29]} 27. Red1 {[%emt 0:04:13]} Ba4 {[%emt 0:01:55]} 28. Rd2 {[%emt 0:01:58]} Rc6 {[%emt 0:05:06]} 29. c3 {[%emt 0:04:09]} Bc5 {[%emt 0:03:24]} 30. Rb7 {[%emt 0:07:02]} Rec8 {[%emt 0:01:50]} 31. Rdd7 {[%emt 0:06:45]} Bxe3+ {[%emt 0:00:36]} 32. Kxe3 {[%emt 0:00:13]} Rxc3+ {[%emt 0:00:20]} 33. Nxc3 {[%emt 0:00:14]} Bxd7 {[%emt 0:00:03]} 34. Rxd7 {[%emt 0:00:17]} Rxc3+ {[%emt 0:00:03]} 35. Kd2 {[%emt 0:00:40]} Rc8 {[%emt 0:00:05]} 36. Ra7 {[%emt 0:00:10]} Kf8 {[%emt 0:02:23]} 37. Rxa5 {[%emt 0:00:10]} Rc7 {[%emt 0:00:14]} 38. a4 {[%emt 0:01:37]} Ke7 {[%emt 0:00:09]} 39. Kd3 {[%emt 0:01:36]} f6 {[%emt 0:02:59]} 40. Kd4 {[%emt 0:00:00]} g6 {[%emt 0:00:00]} 41. Rc5 {[%emt 0:05:26]} Ra7 {[%emt 0:04:10]} 42. a5 {[%emt 0:00:29]} Kd6 {[%emt 0:03:18]} 43. f4 {[%emt 0:02:37]} h5 {[%emt 0:04:28]} 44. e5+ {[%emt 0:06:14]} fxe5+ {[%emt 0:00:06]} 45. fxe5+ {[%emt 0:00:31]} Kd7 {[%emt 0:00:07]} 46. Rc3 {[%emt 0:10:39]} Rxa5 {[%emt 0:05:44]} 47. Rg3 {[%emt 0:00:22]} Ra4+ {[%emt 0:00:03]} 48. Kc5 {[%emt 0:00:22]} Re4 {[%emt 0:00:12]} 49. Rxg6 {[%emt 0:00:54]} Rxe5+ {[%emt 0:00:07]} 50. Kd4 {[%emt 0:00:33]} Kd6 {[%emt 0:00:45]} 51. g4 {[%emt 0:00:55]} hxg4 {[%emt 0:01:49]} 52. Rxg4 {[%emt 0:00:10]} Ra5 {[%emt 0:00:03]} 53. Rg8 {[%emt 0:01:16]} Ra4+ {[%emt 0:00:13]} 54. Ke3 {[%emt 0:01:20]} Kd5 {[%emt 0:00:13]} 55. Rd8+ {[%emt 0:00:34]} Ke5 {[%emt 0:00:12]} 56. Rh8 {[%emt 0:00:44]} Ra3+ {[%emt 0:00:04]} 57. Ke2 {[%emt 0:01:00]} Kd5 {[%emt 0:00:29]} 58. Rd8+ {[%emt 0:00:12]} Ke4 {[%emt 0:00:07]} 59. Rd7 {[%emt 0:00:56]} e5 {[%emt 0:00:10]} 60. Re7 {[%emt 0:00:32]} Ra2+ {[%emt 0:00:10]} 61. Ke1 {[%emt 0:00:28]} Kd4 {[%emt 0:00:21]} 62. Rh7 {[%emt 0:01:40]} e4 {[%emt 0:00:20]} 63. Rh3 {[%emt 0:00:17]} e3 {[%emt 0:00:14]} 64. Rh8 {[%emt 0:00:29]} 1/2-1/2

[Event "EYCC Open-U14 2019"]
[Site "Bratislava"]
[Date "2019.08.06"]
[Round "5.44"]
[White "Indriunas, Matas"]
[Black "Binz, Lennox"]
[Result "1-0"]
[ECO "B42"]
[WhiteElo "1960"]
[BlackElo "1871"]
[Annotator "NA"]
[PlyCount "117"]
[EventDate "2019.08.02"]
[EventType "swiss"]
[EventCountry "SVK"]
[SourceTitle "playchess.com"]
[Source "ChessBase"]
[SourceQuality "1"]
[TimeControl "40/5400+30:1800+30"]

1. e4 {[%emt 0:00:00]} c5 {[%emt 0:00:00]} 2. Nf3 {[%emt 0:00:00]} e6 {[%emt 0:00:08]} 3. d4 {[%emt 0:00:01]} cxd4 {[%emt 0:00:06]} 4. Nxd4 {[%emt 0:00:04]} a6 {[%emt 0:00:07]} 5. Bd3 {[%emt 0:04:52]} Nf6 {[%emt 0:00:16]} 6. O-O {[%emt 0:00:55]} Qc7 {[%emt 0:00:10]} 7. Nc3 {[%emt 0:02:01]} d6 {[%emt 0:09:23]} 8. Qe2 {[%emt 0:02:46]} Nbd7 {[%emt 0:01:02]} 9. Nb3 {[%emt 0:01:42]} b6 {[%emt 0:03:30]} 10. f4 {[%emt 0:01:36]} Be7 {[%emt 0:06:15]} 11. Bd2 {[%emt 0:00:38]} O-O {[%emt 0:00:27]} 12. Rae1 {[%emt 0:00:20]} Bb7 {[%emt 0:04:49]} 13. e5 {[%emt 0:13:50]} Nd5 {[%emt 0:05:33]} 14. Nxd5 {[%emt 0:12:03]} Bxd5 {[%emt 0:02:21]} 15. c4 {[%emt 0:06:11]} Bb7 {[%emt 0:02:19]} 16. Kh1 {[%emt 0:06:08]} Rad8 {[%emt 0:05:06]} 17. Bb1 {[%emt 0:06:36]} g6 {[%emt 0:06:55]} 18. Be4 {[%emt 0:07:12]} Bxe4 {[%emt 0:06:32]} 19. Qxe4 {[%emt 0:00:07]} Nc5 {[%emt 0:01:22]} 20. Nxc5 {[%emt 0:12:11]} Qxc5 {[%emt 0:02:13]} 21. exd6 {[%emt 0:02:03]} Rxd6 {[%emt 0:00:36]} 22. Bc3 {[%emt 0:00:30]} Rd7 {[%emt 0:04:50]} 23. g4 {[%emt 0:02:49]} Bh4 {[%emt 0:08:00]} 24. Rd1 {[%emt 0:03:27]} Rxd1 {[%emt 0:12:33]} 25. Rxd1 {[%emt 0:00:05]} Rd8 {[%emt 0:01:29]} 26. Rd4 {[%emt 0:02:38]} Bf6 {[%emt 0:01:00]} 27. Rxd8+ {[%emt 0:00:30]} Bxd8 {[%emt 0:00:05]} 28. Kg2 {[%emt 0:01:37]} Kf8 {[%emt 0:02:46]} 29. b4 {[%emt 0:03:27]} Qd6 {[%emt 0:00:42]} 30. c5 {[%emt 0:03:43]} Qd1 {[%emt 0:01:30]} 31. h3 {[%emt 0:02:13]} bxc5 {[%emt 0:01:08]} 32. bxc5 {[%emt 0:00:08]} Qc1 {[%emt 0:00:23]} 33. Qd4 {[%emt 0:00:33]} Bc7 {[%emt 0:02:08]} 34. c6 {[%emt 0:01:12]} Qxf4 {[%emt 0:01:08]} 35. Bb4+ {[%emt 0:00:38]} Kg8 {[%emt 0:01:14]} 36. Qxf4 {[%emt 0:00:29]} Bxf4 {[%emt 0:00:05]} 37. Ba5 {[%emt 0:00:11]} Kg7 {[%emt 0:01:21]} 38. Kf3 {[%emt 0:00:47]} Bh2 {[%emt 0:00:48]} 39. c7 {[%emt 0:00:50]} Bxc7 {[%emt 0:00:05]} 40. Bxc7 {[%emt 0:00:00]} Kf6 {[%emt 0:00:00]} 41. Bd8+ {[%emt 0:18:44]} Ke5 {[%emt 0:00:59]} 42. g5 {[%emt 0:03:36]} Kd4 {[%emt 0:02:03]} 43. Be7 {[%emt 0:05:14]} Kd5 {[%emt 0:00:52]} 44. Bf6 {[%emt 0:00:42]} a5 {[%emt 0:02:10]} 45. a3 {[%emt 0:00:25]} Kd6 {[%emt 0:05:26]} 46. Ke4 {[%emt 0:00:54]} Kc6 {[%emt 0:00:29]} 47. Be7 {[%emt 0:00:40]} Kd7 {[%emt 0:00:14]} 48. Bf8 {[%emt 0:00:56]} Ke8 {[%emt 0:02:05]} 49. Bc5 {[%emt 0:00:12]} Kd7 {[%emt 0:00:12]} 50. Ke5 {[%emt 0:00:19]} Kc6 {[%emt 0:00:29]} 51. Bf8 {[%emt 0:02:14]} Kd7 {[%emt 0:00:22]} 52. a4 {[%emt 0:01:40]} Kc6 {[%emt 0:00:35]} 53. Ba3 {[%emt 0:00:07]} Kd7 {[%emt 0:00:46]} 54. Bc1 {[%emt 0:00:12]} Kc6 {[%emt 0:00:12]} 55. Bd2 {[%emt 0:00:05]} Kb6 {[%emt 0:00:33]} 56. Kf6 {[%emt 0:00:07]} Ka6 {[%emt 0:00:06]} 57. Kxf7 {[%emt 0:00:05]} e5 {[%emt 0:00:04]} 58. Ke6 {[%emt 0:00:03]} e4 {[%emt 0:00:10]} 59. Ke5 {[%emt 0:00:04]} 1-0

[Event "EYCC Open-U14 2019"]
[Site "Bratislava"]
[Date "2019.08.06"]
[Round "5.45"]
[White "Krivenko, Dion"]
[Black "Martinez Soriano, Javier"]
[Result "1-0"]
[ECO "C00"]
[WhiteElo "1700"]
[BlackElo "1992"]
[Annotator "NA"]
[PlyCount "55"]
[EventDate "2019.08.02"]
[EventType "swiss"]
[EventCountry "SVK"]
[SourceTitle "playchess.com"]
[Source "ChessBase"]
[SourceQuality "1"]
[TimeControl "40/5400+30:1800+30"]

1. e4 {[%emt 0:00:00]} e6 {[%emt 0:00:00]} 2. Qe2 {[%emt 0:00:00]} c5 {[%emt 0:00:00]} 3. Nf3 {[%emt 0:00:00]} Nc6 {[%emt 0:00:13]} 4. g3 {[%emt 0:00:07]} g6 {[%emt 0:00:32]} 5. Bg2 {[%emt 0:00:07]} Bg7 {[%emt 0:00:27]} 6. h4 {[%emt 0:00:09]} h5 {[%emt 0:02:33]} 7. O-O {[%emt 0:03:35]} Nge7 {[%emt 0:01:03]} 8. d3 {[%emt 0:00:56]} O-O {[%emt 0:00:19]} 9. c3 {[%emt 0:01:09]} b5 {[%emt 0:02:35]} 10. Be3 {[%emt 0:03:29]} d6 {[%emt 0:02:45]} 11. d4 {[%emt 0:06:55]} cxd4 {[%emt 0:05:49]} 12. cxd4 {[%emt 0:01:07]} d5 {[%emt 0:00:27]} 13. e5 {[%emt 0:01:02]} a5 {[%emt 0:02:33]} 14. Rc1 {[%emt 0:02:52]} Ba6 {[%emt 0:05:27]} 15. Bg5 {[%emt 0:06:51]} Qb6 {[%emt 0:01:52]} 16. Bh3 {[%emt 0:10:54]} Rfc8 {[%emt 0:07:44]} 17. Nbd2 {[%emt 0:04:31]} a4 {[%emt 0:07:42]} 18. Qe3 {[%emt 0:05:45]} Ra7 {[%emt 0:01:08]} 19. Bf6 {[%emt 0:09:46]} Nb4 {[%emt 0:16:01]} 20. Rxc8+ {[%emt 0:05:39]} Bxc8 {[%emt 0:05:05]} 21. Qg5 {[%emt 0:12:10]} Nec6 {[%emt 0:04:19]} 22. g4 {[%emt 0:02:50]} hxg4 {[%emt 0:02:11]} 23. Qxg4 {[%emt 0:05:34]} Rc7 {[%emt 0:06:43]} 24. Bxg7 {[%emt 0:05:18]} Kxg7 {[%emt 0:00:09]} 25. h5 {[%emt 0:03:20]} Ne7 {[%emt 0:02:17]} 26. h6+ {[%emt 0:02:36]} Kh8 {[%emt 0:00:29]} 27. Qh4 {[%emt 0:01:48]} Ng8 {[%emt 0:03:27]} 28. h7 {[%emt 0:00:55]} 1-0

[Event "EYCC Open-U14 2019"]
[Site "Bratislava"]
[Date "2019.08.06"]
[Round "5.46"]
[White "Danaci, Ege"]
[Black "Sinitsyn, Anton"]
[Result "1-0"]
[ECO "C45"]
[WhiteElo "1976"]
[BlackElo "1847"]
[Annotator "NA"]
[PlyCount "63"]
[EventDate "2019.08.02"]
[EventType "swiss"]
[EventCountry "SVK"]
[SourceTitle "playchess.com"]
[Source "ChessBase"]
[SourceQuality "1"]
[TimeControl "40/5400+30:1800+30"]

1. e4 {[%emt 0:00:00]} e5 {[%emt 0:00:00]} 2. Nf3 {[%emt 0:00:21]} Nc6 {[%emt 0:00:13]} 3. d4 {[%emt 0:00:48]} exd4 {[%emt 0:00:23]} 4. Nxd4 {[%emt 0:00:03]} Bc5 {[%emt 0:00:20]} 5. Nb3 {[%emt 0:01:04]} Bb4+ {[%emt 0:02:43]} 6. c3 {[%emt 0:06:54]} Be7 {[%emt 0:01:40]} 7. c4 {[%emt 0:06:36]} Nf6 {[%emt 0:02:36]} 8. f3 {[%emt 0:00:30]} O-O {[%emt 0:09:39]} 9. Nc3 {[%emt 0:01:28]} Re8 {[%emt 0:03:54]} 10. Be2 {[%emt 0:01:15]} a5 {[%emt 0:01:05]} 11. Be3 {[%emt 0:03:38]} b6 {[%emt 0:05:01]} 12. O-O {[%emt 0:02:39]} Bb7 {[%emt 0:03:57]} 13. Nd4 {[%emt 0:04:00]} Bc5 {[%emt 0:04:21]} 14. Nf5 {[%emt 0:03:36]} Bxe3+ {[%emt 0:00:45]} 15. Nxe3 {[%emt 0:00:04]} d6 {[%emt 0:01:41]} 16. Ned5 {[%emt 0:17:24]} Ne5 {[%emt 0:05:34]} 17. Qd4 {[%emt 0:05:48]} h6 {[%emt 0:07:05]} 18. Bd1 {[%emt 0:10:50]} Bc6 {[%emt 0:06:09]} 19. Bc2 {[%emt 0:08:45]} Rc8 {[%emt 0:04:50]} 20. Rae1 {[%emt 0:00:18]} Nxd5 {[%emt 0:03:03]} 21. cxd5 {[%emt 0:02:30]} Bd7 {[%emt 0:01:18]} 22. f4 {[%emt 0:01:32]} Ng6 {[%emt 0:00:59]} 23. e5 {[%emt 0:00:24]} dxe5 {[%emt 0:04:52]} 24. fxe5 {[%emt 0:00:09]} Qg5 {[%emt 0:01:04]} 25. Bxg6 {[%emt 0:19:56]} Qxg6 {[%emt 0:00:16]} 26. Rf3 {[%emt 0:00:50]} Qc2 {[%emt 0:02:33]} 27. Rg3 {[%emt 0:00:30]} g6 {[%emt 0:00:36]} 28. Ne4 {[%emt 0:00:50]} Red8 {[%emt 0:01:34]} 29. Nf6+ {[%emt 0:00:15]} Kf8 {[%emt 0:00:31]} 30. Nxd7+ {[%emt 0:00:42]} Rxd7 {[%emt 0:00:04]} 31. e6 {[%emt 0:00:06]} Rdd8 {[%emt 0:00:55]} 32. Qf6 {[%emt 0:01:11]} 1-0

[Event "EYCC Open-U14 2019"]
[Site "Bratislava"]
[Date "2019.08.06"]
[Round "5.47"]
[White "Vaclavik, Jan"]
[Black "Stockmann, Till"]
[Result "0-1"]
[ECO "B41"]
[WhiteElo "1733"]
[BlackElo "1975"]
[Annotator "NA"]
[PlyCount "52"]
[EventDate "2019.08.02"]
[EventType "swiss"]
[EventCountry "SVK"]
[SourceTitle "playchess.com"]
[Source "ChessBase"]
[SourceQuality "1"]
[TimeControl "40/5400+30:1800+30"]

1. e4 {[%emt 0:00:00]} c5 {[%emt 0:00:00]} 2. Nf3 {[%emt 0:00:12]} e6 {[%emt 0:00:26]} 3. d4 {[%emt 0:01:33]} cxd4 {[%emt 0:00:08]} 4. Nxd4 {[%emt 0:00:05]} a6 {[%emt 0:00:28]} 5. c4 {[%emt 0:04:48]} Nf6 {[%emt 0:03:54]} 6. Nc3 {[%emt 0:12:47]} Bb4 {[%emt 0:02:44]} 7. f3 {[%emt 0:10:46]} Qc7 {[%emt 0:07:04]} 8. Bd2 {[%emt 0:11:48]} O-O {[%emt 0:04:09]} 9. Nc2 {[%emt 0:15:13]} Be7 {[%emt 0:07:07]} 10. Be2 {[%emt 0:04:58]} Nc6 {[%emt 0:01:53]} 11. b3 {[%emt 0:09:58]} Rb8 {[%emt 0:04:48]} 12. Rc1 {[%emt 0:07:29]} Rd8 {[%emt 0:02:24]} 13. f4 {[%emt 0:05:49]} d5 {[%emt 0:09:23]} 14. cxd5 {[%emt 0:06:16]} exd5 {[%emt 0:00:34]} 15. e5 {[%emt 0:01:34]} d4 {[%emt 0:02:00]} 16. Nxd4 {[%emt 0:02:54]} Rxd4 {[%emt 0:01:25]} 17. exf6 {[%emt 0:00:12]} Bxf6 {[%emt 0:00:09]} 18. Qc2 {[%emt 0:01:09]} Nb4 {[%emt 0:10:30]} 19. Qb2 {[%emt 0:01:25]} Qd8 {[%emt 0:01:05]} 20. a3 {[%emt 0:00:28]} Nd3+ {[%emt 0:00:27]} 21. Bxd3 {[%emt 0:00:09]} Rxd3 {[%emt 0:00:09]} 22. Qa2 {[%emt 0:00:53]} Qe7+ {[%emt 0:01:53]} 23. Ne2 {[%emt 0:00:29]} Bg4 {[%emt 0:00:46]} 24. Bb4 {[%emt 0:00:30]} Qe6 {[%emt 0:03:24]} 25. h3 {[%emt 0:00:33]} Bxe2 {[%emt 0:00:07]} 26. Qxe2 {[%emt 0:00:05]} Re3 {[%emt 0:00:07]} 0-1